[Event "*** Titled Tuesday Blitz"]
[Site "Chess.com"]
[Date "2019.10.01"]
[Round "6"]
[White "Keranke"]
[Black "Micki-taryan"]
[Result "0-1"]
[WhiteElo "2812"]
[BlackElo "2975"]
[TimeControl "180+2"]
[EndTime "14:24:13 PDT"]
[Termination "Micki-taryan won by resignation"]

1. d4 {[%clk 0:03:01.9]} 1... Nf6 {[%clk 0:03:00]} 2. c4 {[%clk 0:03:03]} 2...
e6 {[%clk 0:03:01.3]} 3. g3 {[%clk 0:03:04.2]} 3... c5 {[%clk 0:03:02.2]} 4. Nf3
{[%clk 0:03:05.2]} 4... cxd4 {[%clk 0:03:02.2]} 5. Nxd4 {[%clk 0:03:07.1]} 5...
Bb4+ {[%clk 0:03:03.3]} 6. Bd2 {[%clk 0:03:06.6]} 6... Qb6 {[%clk 0:02:59.5]} 7.
Nb3 {[%clk 0:03:03]} 7... Ne4 {[%clk 0:02:52]} 8. e3 {[%clk 0:02:57.7]} 8...
Nxd2 {[%clk 0:02:45.8]} 9. N1xd2 {[%clk 0:02:59.6]} 9... Qc6 {[%clk 0:02:45.1]}
10. Rg1 {[%clk 0:02:55.7]} 10... O-O {[%clk 0:02:46.1]} 11. Qc2 {[%clk
0:02:53.2]} 11... Na6 {[%clk 0:02:37.6]} 12. Bg2 {[%clk 0:02:48.3]} 12... Qc7
{[%clk 0:02:38.5]} 13. a3 {[%clk 0:02:44.5]} 13... Be7 {[%clk 0:02:39]} 14.
O-O-O {[%clk 0:02:40.6]} 14... d6 {[%clk 0:02:34]} 15. Kb1 {[%clk 0:02:33.2]}
15... Rb8 {[%clk 0:02:35.1]} 16. Rc1 {[%clk 0:02:32.4]} 16... Bd7 {[%clk
0:02:34.7]} 17. Rgd1 {[%clk 0:02:32.9]} 17... Rfc8 {[%clk 0:02:35.7]} 18. Nd4
{[%clk 0:02:31.7]} 18... Nc5 {[%clk 0:02:29.3]} 19. Ne4 {[%clk 0:02:26]} 19...
Qb6 {[%clk 0:02:23.9]} 20. Nxc5 {[%clk 0:02:22.5]} 20... Rxc5 {[%clk 0:02:25.8]}
21. Qb3 {[%clk 0:02:06.7]} 21... Qc7 {[%clk 0:02:23.4]} 22. Nb5 {[%clk
0:02:00.1]} 22... Qb6 {[%clk 0:02:20.9]} 23. Nd4 {[%clk 0:01:59.6]} 23... Qa6
{[%clk 0:02:19.1]} 24. Bf1 {[%clk 0:01:54.7]} 24... Ba4 {[%clk 0:02:19.1]} 25.
Qb4 {[%clk 0:01:53.9]} 25... Bxd1 {[%clk 0:02:18.9]} 26. Rxd1 {[%clk 0:01:55.8]}
26... Rbc8 {[%clk 0:02:15.9]} 27. Qb3 {[%clk 0:01:50.4]} 27... g6 {[%clk
0:02:09.9]} 28. Nb5 {[%clk 0:01:50.1]} 28... Qb6 {[%clk 0:02:08.8]} 29. Qa4
{[%clk 0:01:48.4]} 29... a6 {[%clk 0:02:07]} 30. Nc3 {[%clk 0:01:49.5]} 30...
Bf6 {[%clk 0:02:08.4]} 31. Qb4 {[%clk 0:01:39.2]} 31... Qc6 {[%clk 0:02:05.5]}
32. Na4 {[%clk 0:01:35.4]} 32... Rf5 {[%clk 0:02:06.3]} 33. Rxd6 {[%clk
0:01:34.6]} 33... Qh1 {[%clk 0:02:04]} 34. Qe1 {[%clk 0:01:34.4]} 34... Qxh2
{[%clk 0:01:59.6]} 35. Rd2 {[%clk 0:01:31.4]} 35... Qh1 {[%clk 0:01:58]} 36. Rc2
{[%clk 0:01:28]} 36... Rd8 {[%clk 0:01:57.1]} 37. Ka2 {[%clk 0:01:27.9]} 37...
b5 {[%clk 0:01:56.3]} 38. Nb6 {[%clk 0:01:25.5]} 38... bxc4 {[%clk 0:01:55.7]}
39. Nxc4 {[%clk 0:01:25.9]} 39... Rb8 {[%clk 0:01:56.8]} 40. Qe2 {[%clk
0:01:24]} 40... Rfb5 {[%clk 0:01:54]} 41. e4 {[%clk 0:01:22.4]} 41... Bd4 {[%clk
0:01:46.2]} 42. Qd3 {[%clk 0:01:16.1]} 42... e5 {[%clk 0:01:46.3]} 43. Be2
{[%clk 0:01:03.1]} 43... Rb3 {[%clk 0:01:45.2]} 44. Qd2 {[%clk 0:00:58.5]} 44...
Qxe4 {[%clk 0:01:45.7]} 45. Nd6 {[%clk 0:00:45.7]} 45... Qxc2 {[%clk 0:01:45.1]}
0-1

[Event "*** Titled Tuesday Blitz"]
[Site "Chess.com"]
[Date "2019.10.01"]
[Round "6"]
[White "Aggressus"]
[Black "Grebeniuk-S"]
[Result "0-1"]
[WhiteElo "2335"]
[BlackElo "2493"]
[TimeControl "180+2"]
[EndTime "14:24:15 PDT"]
[Termination "Grebeniuk-S won on time"]

1. e4 {[%clk 0:03:01.9]} 1... c5 {[%clk 0:02:52.7]} 2. Nf3 {[%clk 0:03:00.4]}
2... d6 {[%clk 0:02:53.1]} 3. d4 {[%clk 0:02:56.2]} 3... cxd4 {[%clk 0:02:53.8]}
4. Qxd4 {[%clk 0:02:56.7]} 4... Nc6 {[%clk 0:02:51.5]} 5. Bb5 {[%clk 0:02:56.4]}
5... Bd7 {[%clk 0:02:51.9]} 6. Bxc6 {[%clk 0:02:56.4]} 6... Bxc6 {[%clk
0:02:48]} 7. Nc3 {[%clk 0:02:57.1]} 7... Nf6 {[%clk 0:02:48.3]} 8. Bg5 {[%clk
0:02:57.9]} 8... Qa5 {[%clk 0:02:33.4]} 9. O-O-O {[%clk 0:02:50.6]} 9... h6
{[%clk 0:02:25]} 10. Bh4 {[%clk 0:02:39.5]} 10... g5 {[%clk 0:02:23.1]} 11. Bg3
{[%clk 0:02:40.4]} 11... Bg7 {[%clk 0:02:24.4]} 12. e5 {[%clk 0:01:46.2]} 12...
Nd7 {[%clk 0:02:13.9]} 13. Nd5 {[%clk 0:01:26.5]} 13... Rc8 {[%clk 0:01:37.7]}
14. Nxe7 {[%clk 0:00:14.3]} 14... Kxe7 {[%clk 0:01:16.3]} 15. Qxd6+ {[%clk
0:00:10]} 15... Ke8 {[%clk 0:01:17.5]} 16. e6 {[%clk 0:00:09]} 16... fxe6 {[%clk
0:01:07.1]} 17. Qxe6+ {[%clk 0:00:10.4]} 17... Kd8 {[%clk 0:01:08.4]} 18. Rhe1
{[%clk 0:00:11.1]} 18... Qb4 {[%clk 0:00:40.4]} 19. c3 {[%clk 0:00:07.1]} 19...
Ba4 {[%clk 0:00:33]} 0-1

[Event "*** Titled Tuesday Blitz"]
[Site "Chess.com"]
[Date "2019.10.01"]
[Round "6"]
[White "WiktoriaPOL"]
[Black "ShahMatKanal"]
[Result "0-1"]
[WhiteElo "2267"]
[BlackElo "2449"]
[TimeControl "180+2"]
[EndTime "14:24:19 PDT"]
[Termination "ShahMatKanal won by checkmate"]

1. c4 {[%clk 0:03:00.9]} 1... e6 {[%clk 0:02:59.8]} 2. Nc3 {[%clk 0:03:00.4]}
2... d5 {[%clk 0:03:00.9]} 3. cxd5 {[%clk 0:02:59.3]} 3... exd5 {[%clk
0:03:02.8]} 4. d4 {[%clk 0:03:00.2]} 4... c6 {[%clk 0:03:03]} 5. Nf3 {[%clk
0:02:59.6]} 5... Bd6 {[%clk 0:03:04.2]} 6. Bg5 {[%clk 0:02:57]} 6... Ne7 {[%clk
0:03:00.6]} 7. e3 {[%clk 0:02:56.5]} 7... Bf5 {[%clk 0:02:58.1]} 8. Bd3 {[%clk
0:02:55.7]} 8... Bxd3 {[%clk 0:02:58.6]} 9. Qxd3 {[%clk 0:02:55.9]} 9... O-O
{[%clk 0:02:58]} 10. O-O {[%clk 0:02:55.1]} 10... Nd7 {[%clk 0:02:53.7]} 11. a3
{[%clk 0:02:50.9]} 11... a5 {[%clk 0:02:51.3]} 12. Rab1 {[%clk 0:02:48.5]} 12...
Qb8 {[%clk 0:02:28.1]} 13. b4 {[%clk 0:02:43.6]} 13... axb4 {[%clk 0:02:29.2]}
14. axb4 {[%clk 0:02:44.5]} 14... b5 {[%clk 0:02:23.1]} 15. Rfc1 {[%clk
0:02:34.2]} 15... Nb6 {[%clk 0:02:08.8]} 16. Bxe7 {[%clk 0:02:22.3]} 16... Bxe7
{[%clk 0:02:09]} 17. Ne5 {[%clk 0:02:23.2]} 17... Qb7 {[%clk 0:01:47.9]} 18. e4
{[%clk 0:01:59.5]} 18... Nc4 {[%clk 0:01:42.5]} 19. exd5 {[%clk 0:01:42.1]}
19... cxd5 {[%clk 0:01:43.4]} 20. f4 {[%clk 0:01:14.9]} 20... Ra3 {[%clk
0:01:22.9]} 21. Ra1 {[%clk 0:01:08.5]} 21... Bxb4 {[%clk 0:01:15.3]} 22. Rxa3
{[%clk 0:01:02.1]} 22... Bxa3 {[%clk 0:01:15.4]} 23. Rb1 {[%clk 0:01:01.2]}
23... b4 {[%clk 0:01:11.7]} 24. Nxc4 {[%clk 0:00:59.5]} 24... dxc4 {[%clk
0:01:10.4]} 25. Qxc4 {[%clk 0:00:59.1]} 25... Rc8 {[%clk 0:01:08.3]} 26. Qd5
{[%clk 0:00:44.5]} 26... Qe7 {[%clk 0:00:59.2]} 27. Nb5 {[%clk 0:00:40.4]} 27...
Qe3+ {[%clk 0:00:56.8]} 28. Kf1 {[%clk 0:00:39.9]} 28... Qd3+ {[%clk 0:00:57.7]}
29. Kf2 {[%clk 0:00:38.2]} 29... Rc2+ {[%clk 0:00:51.3]} 30. Kg1 {[%clk
0:00:34]} 30... Qe3+ {[%clk 0:00:51.9]} 31. Kh1 {[%clk 0:00:32.1]} 31... Qc1+
{[%clk 0:00:52.8]} 32. Rxc1 {[%clk 0:00:30.8]} 32... Rxc1# {[%clk 0:00:54.4]}
0-1

[Event "*** Titled Tuesday Blitz"]
[Site "Chess.com"]
[Date "2019.10.01"]
[Round "6"]
[White "alishersuleymenov"]
[Black "patrisiii123"]
[Result "1-0"]
[WhiteElo "2716"]
[BlackElo "2491"]
[TimeControl "180+2"]
[EndTime "14:24:20 PDT"]
[Termination "alishersuleymenov won on time"]

1. d4 {[%clk 0:03:01.9]} 1... d5 {[%clk 0:02:57.1]} 2. Bf4 {[%clk 0:03:02.7]}
2... Bf5 {[%clk 0:02:57.2]} 3. e3 {[%clk 0:02:52.3]} 3... e6 {[%clk 0:02:22.9]}
4. Nf3 {[%clk 0:02:52.6]} 4... c5 {[%clk 0:02:23.7]} 5. c3 {[%clk 0:02:16.5]}
5... Nc6 {[%clk 0:02:23.5]} 6. Nbd2 {[%clk 0:02:17.3]} 6... cxd4 {[%clk
0:02:23.1]} 7. exd4 {[%clk 0:02:18.4]} 7... Bd6 {[%clk 0:02:22.2]} 8. Bg3 {[%clk
0:02:08]} 8... Nf6 {[%clk 0:02:20.1]} 9. Be2 {[%clk 0:02:04]} 9... O-O {[%clk
0:02:17.7]} 10. O-O {[%clk 0:02:04.9]} 10... Bxg3 {[%clk 0:02:15.9]} 11. hxg3
{[%clk 0:02:06.8]} 11... Rb8 {[%clk 0:02:15.1]} 12. a4 {[%clk 0:02:07.1]} 12...
a6 {[%clk 0:02:13.5]} 13. b4 {[%clk 0:02:05.7]} 13... Rc8 {[%clk 0:02:05.1]} 14.
Nb3 {[%clk 0:02:00.7]} 14... Ne4 {[%clk 0:01:58.9]} 15. Rc1 {[%clk 0:02:01]}
15... a5 {[%clk 0:01:54.6]} 16. b5 {[%clk 0:01:41]} 16... Nb8 {[%clk 0:01:52.8]}
17. c4 {[%clk 0:01:38.8]} 17... dxc4 {[%clk 0:01:44.7]} 18. Bxc4 {[%clk
0:01:40.7]} 18... b6 {[%clk 0:01:45.4]} 19. Ne5 {[%clk 0:01:35.7]} 19... Qd6
{[%clk 0:01:40.7]} 20. Qe2 {[%clk 0:01:36.7]} 20... Qb4 {[%clk 0:01:27]} 21. g4
{[%clk 0:01:28.1]} 21... Nc3 {[%clk 0:01:25]} 22. Rxc3 {[%clk 0:01:26.7]} 22...
Qxc3 {[%clk 0:01:21.4]} 23. gxf5 {[%clk 0:01:27.9]} 23... exf5 {[%clk
0:01:15.8]} 24. Rc1 {[%clk 0:01:28.9]} 24... Qb4 {[%clk 0:01:07.7]} 25. Bxf7+
{[%clk 0:01:29.8]} 25... Kh8 {[%clk 0:01:08.4]} 26. Rxc8 {[%clk 0:01:31]} 26...
Rxc8 {[%clk 0:01:09.8]} 27. Qh5 {[%clk 0:01:32.3]} 27... g6 {[%clk 0:00:32.3]}
28. Qh6 {[%clk 0:01:33.5]} 28... Rg8 {[%clk 0:00:17]} 29. Nxg6+ {[%clk
0:01:34.4]} 29... Rxg6 {[%clk 0:00:16.5]} 30. Bxg6 {[%clk 0:01:36.3]} 30... Qe1+
{[%clk 0:00:11.2]} 31. Kh2 {[%clk 0:01:37.2]} 31... Qe7 {[%clk 0:00:12]} 32.
Bxf5 {[%clk 0:01:38.5]} 32... Qc7+ {[%clk 0:00:06]} 33. f4 {[%clk 0:01:39.2]}
33... Qe7 {[%clk 0:00:05.6]} 34. Nd2 {[%clk 0:01:40.1]} 34... Nd7 {[%clk
0:00:03.4]} 35. Bxd7 {[%clk 0:01:40.7]} 1-0

[Event "*** Titled Tuesday Blitz"]
[Site "Chess.com"]
[Date "2019.10.01"]
[Round "6"]
[White "Mikhail_Golubev"]
[Black "ThePunisherxx"]
[Result "1-0"]
[WhiteElo "2510"]
[BlackElo "2632"]
[TimeControl "180+2"]
[EndTime "14:24:32 PDT"]
[Termination "Mikhail_Golubev won by checkmate"]

1. e4 {[%clk 0:03:01.9]} 1... c5 {[%clk 0:03:00.3]} 2. Nf3 {[%clk 0:03:02.6]}
2... e6 {[%clk 0:02:59.4]} 3. d4 {[%clk 0:03:03.2]} 3... cxd4 {[%clk 0:03:00.6]}
4. Nxd4 {[%clk 0:03:04.3]} 4... a6 {[%clk 0:03:02.1]} 5. Bd3 {[%clk 0:03:04.5]}
5... Bc5 {[%clk 0:03:02.2]} 6. Be3 {[%clk 0:03:00.2]} 6... Qb6 {[%clk
0:02:42.3]} 7. c3 {[%clk 0:02:56.6]} 7... Nc6 {[%clk 0:02:39.9]} 8. Nd2 {[%clk
0:02:42.9]} 8... Bxd4 {[%clk 0:02:36.7]} 9. cxd4 {[%clk 0:02:28.8]} 9... d5
{[%clk 0:02:13.3]} 10. Qg4 {[%clk 0:02:08.3]} 10... g6 {[%clk 0:02:06.4]} 11. e5
{[%clk 0:01:42.2]} 11... Qxb2 {[%clk 0:01:58]} 12. O-O {[%clk 0:01:42.3]} 12...
Qc3 {[%clk 0:01:55.7]} 13. Be2 {[%clk 0:01:28.3]} 13... h5 {[%clk 0:01:54.9]}
14. Qf4 {[%clk 0:01:22.3]} 14... Nge7 {[%clk 0:01:35.1]} 15. Rfc1 {[%clk
0:01:21.7]} 15... Qa5 {[%clk 0:01:32.6]} 16. Nf3 {[%clk 0:01:14]} 16... Nf5
{[%clk 0:01:27.9]} 17. Bd3 {[%clk 0:01:13.9]} 17... Qd8 {[%clk 0:01:24.7]} 18.
Bxf5 {[%clk 0:01:10.9]} 18... exf5 {[%clk 0:01:24.5]} 19. Rab1 {[%clk
0:01:02.4]} 19... Na5 {[%clk 0:01:20.5]} 20. e6 {[%clk 0:00:50.9]} 20... Bxe6
{[%clk 0:01:18.7]} 21. Qe5 {[%clk 0:00:51.4]} 21... Rg8 {[%clk 0:01:00.3]} 22.
Bg5 {[%clk 0:00:51.8]} 22... Qd7 {[%clk 0:00:43.1]} 23. Rc7 {[%clk 0:00:48.3]}
23... Nc4 {[%clk 0:00:22]} 24. Rxd7 {[%clk 0:00:46.8]} 24... Nxe5 {[%clk
0:00:23]} 25. Re7+ {[%clk 0:00:47.2]} 25... Kf8 {[%clk 0:00:24.4]} 26. Nxe5
{[%clk 0:00:46.1]} 26... b5 {[%clk 0:00:21.8]} 27. Rc1 {[%clk 0:00:44]} 27... b4
{[%clk 0:00:19.7]} 28. Rcc7 {[%clk 0:00:43.4]} 28... Re8 {[%clk 0:00:14.3]} 29.
Rxf7+ {[%clk 0:00:43.5]} 29... Bxf7 {[%clk 0:00:14.8]} 30. Rxf7# {[%clk
0:00:44.6]} 1-0

[Event "*** Titled Tuesday Blitz"]
[Site "Chess.com"]
[Date "2019.10.01"]
[Round "6"]
[White "GadimbayliA"]
[Black "Bigfish1995"]
[Result "0-1"]
[WhiteElo "2866"]
[BlackElo "3000"]
[TimeControl "180+2"]
[EndTime "14:24:40 PDT"]
[Termination "Bigfish1995 won by checkmate"]

1. e4 {[%clk 0:03:01.9]} 1... e5 {[%clk 0:02:59.1]} 2. Nf3 {[%clk 0:03:02.7]}
2... Nc6 {[%clk 0:03:00.4]} 3. Bb5 {[%clk 0:03:02.9]} 3... a6 {[%clk 0:02:59.5]}
4. Ba4 {[%clk 0:03:04.1]} 4... Nf6 {[%clk 0:03:00.5]} 5. O-O {[%clk 0:03:04.9]}
5... b5 {[%clk 0:03:01.3]} 6. Bb3 {[%clk 0:03:06]} 6... Bc5 {[%clk 0:03:02.1]}
7. c3 {[%clk 0:03:03.7]} 7... d6 {[%clk 0:03:03.2]} 8. d4 {[%clk 0:03:04.7]}
8... Bb6 {[%clk 0:03:04.1]} 9. Be3 {[%clk 0:03:05.9]} 9... O-O {[%clk 0:02:59]}
10. Nbd2 {[%clk 0:03:06.7]} 10... h6 {[%clk 0:02:49.3]} 11. Qb1 {[%clk
0:02:53.8]} 11... Ng4 {[%clk 0:02:41.2]} 12. Bd5 {[%clk 0:02:44.6]} 12... Bd7
{[%clk 0:02:40.8]} 13. a4 {[%clk 0:02:37.3]} 13... Rb8 {[%clk 0:02:31.1]} 14.
axb5 {[%clk 0:02:35.7]} 14... axb5 {[%clk 0:02:31]} 15. b4 {[%clk 0:02:33.4]}
15... Kh8 {[%clk 0:02:06.6]} 16. h3 {[%clk 0:02:16.5]} 16... Nxe3 {[%clk
0:02:04.7]} 17. fxe3 {[%clk 0:02:18.4]} 17... Ne7 {[%clk 0:02:05.8]} 18. Bb3
{[%clk 0:02:13.8]} 18... exd4 {[%clk 0:01:36.3]} 19. exd4 {[%clk 0:02:13.3]}
19... c5 {[%clk 0:01:27]} 20. bxc5 {[%clk 0:02:11.2]} 20... dxc5 {[%clk
0:01:27.1]} 21. Kh1 {[%clk 0:02:13.1]} 21... Ng6 {[%clk 0:01:00.8]} 22. e5
{[%clk 0:02:02.6]} 22... c4 {[%clk 0:00:46]} 23. Bc2 {[%clk 0:02:02.2]} 23...
Nf4 {[%clk 0:00:47.4]} 24. Ne4 {[%clk 0:01:42.7]} 24... Bc6 {[%clk 0:00:46.4]}
25. Qc1 {[%clk 0:01:20]} 25... Nd3 {[%clk 0:00:18]} 26. Qe3 {[%clk 0:01:08.1]}
26... Qd5 {[%clk 0:00:16.7]} 27. Nd6 {[%clk 0:00:41.4]} 27... f6 {[%clk
0:00:15.4]} 28. Nh4 {[%clk 0:00:38.2]} 28... Kg8 {[%clk 0:00:15.8]} 29. Ng6
{[%clk 0:00:36.5]} 29... Qxg2# {[%clk 0:00:16.3]} 0-1

[Event "*** Titled Tuesday Blitz"]
[Site "Chess.com"]
[Date "2019.10.01"]
[Round "6"]
[White "vovachesss"]
[Black "Spring199"]
[Result "1-0"]
[WhiteElo "2529"]
[BlackElo "2369"]
[TimeControl "180+2"]
[EndTime "14:24:46 PDT"]
[Termination "vovachesss won by checkmate"]

1. d4 {[%clk 0:03:01.9]} 1... Nf6 {[%clk 0:02:59.7]} 2. Nc3 {[%clk 0:03:01]}
2... d5 {[%clk 0:02:59.8]} 3. Bg5 {[%clk 0:03:02.4]} 3... e6 {[%clk 0:02:57.8]}
4. e4 {[%clk 0:03:03.4]} 4... dxe4 {[%clk 0:02:55.9]} 5. Nxe4 {[%clk 0:03:04.3]}
5... Be7 {[%clk 0:02:57.8]} 6. Bxf6 {[%clk 0:03:05.2]} 6... gxf6 {[%clk
0:02:56.7]} 7. c3 {[%clk 0:03:07.1]} 7... f5 {[%clk 0:02:53.1]} 8. Ng3 {[%clk
0:03:04.7]} 8... b6 {[%clk 0:02:51.4]} 9. Be2 {[%clk 0:03:04.2]} 9... Bb7 {[%clk
0:02:51.8]} 10. Bf3 {[%clk 0:03:05.7]} 10... c6 {[%clk 0:02:47.1]} 11. N1e2
{[%clk 0:03:05.4]} 11... Nd7 {[%clk 0:02:46.9]} 12. Nf4 {[%clk 0:03:05.8]} 12...
Nf6 {[%clk 0:02:45]} 13. Qd2 {[%clk 0:03:01]} 13... Qc7 {[%clk 0:02:44.4]} 14.
O-O-O {[%clk 0:03:01]} 14... O-O-O {[%clk 0:02:42.4]} 15. Rhe1 {[%clk
0:02:59.8]} 15... Ng4 {[%clk 0:02:35.3]} 16. h3 {[%clk 0:02:31.2]} 16... Bg5
{[%clk 0:02:33.9]} 17. Ngh5 {[%clk 0:02:30.6]} 17... Nf6 {[%clk 0:02:29.9]} 18.
h4 {[%clk 0:01:43.6]} 18... Bh6 {[%clk 0:02:21.4]} 19. g3 {[%clk 0:01:44]} 19...
Nxh5 {[%clk 0:02:13.3]} 20. Bxh5 {[%clk 0:01:45.9]} 20... c5 {[%clk 0:02:13.9]}
21. Qe3 {[%clk 0:01:40.9]} 21... cxd4 {[%clk 0:02:09.5]} 22. Rxd4 {[%clk
0:01:37.2]} 22... Rxd4 {[%clk 0:01:55.5]} 23. Qxd4 {[%clk 0:01:39.1]} 23... Rd8
{[%clk 0:01:56.1]} 24. Qe3 {[%clk 0:01:22.2]} 24... Be4 {[%clk 0:01:45.5]} 25.
f3 {[%clk 0:01:18.2]} 25... e5 {[%clk 0:01:40.6]} 26. fxe4 {[%clk 0:01:13.1]}
26... exf4 {[%clk 0:01:40.6]} 27. Qf3 {[%clk 0:01:14.3]} 27... fxg3+ {[%clk
0:01:39.6]} 28. Kb1 {[%clk 0:01:15]} 28... f4 {[%clk 0:01:39.5]} 29. e5 {[%clk
0:01:11.9]} 29... Kb8 {[%clk 0:01:35.3]} 30. Qe4 {[%clk 0:01:08.6]} 30... Qe7
{[%clk 0:00:49]} 31. Bf3 {[%clk 0:01:06.8]} 31... Kc8 {[%clk 0:00:02.2]} 32.
Qa8+ {[%clk 0:01:06.3]} 32... Kd7 {[%clk 0:00:02.5]} 33. Qc6# {[%clk 0:01:07.8]}
1-0

[Event "*** Titled Tuesday Blitz"]
[Site "Chess.com"]
[Date "2019.10.01"]
[Round "6"]
[White "politeplayer"]
[Black "FearNoEvil12"]
[Result "0-1"]
[WhiteElo "2183"]
[BlackElo "2044"]
[TimeControl "180+2"]
[EndTime "14:24:50 PDT"]
[Termination "FearNoEvil12 won by checkmate"]

1. f4 {[%clk 0:02:31]} 1... b5 {[%clk 0:02:59.3]} 2. Nf3 {[%clk 0:02:30.1]} 2...
a6 {[%clk 0:03:00.5]} 3. e4 {[%clk 0:02:25.4]} 3... Bb7 {[%clk 0:03:01.8]} 4. d3
{[%clk 0:02:25.1]} 4... e6 {[%clk 0:03:03]} 5. Be2 {[%clk 0:02:25.6]} 5... c5
{[%clk 0:03:04]} 6. O-O {[%clk 0:02:26.7]} 6... Nc6 {[%clk 0:03:05.4]} 7. Kh1
{[%clk 0:02:21.3]} 7... d5 {[%clk 0:03:04.9]} 8. Qe1 {[%clk 0:02:16.6]} 8...
dxe4 {[%clk 0:03:03.3]} 9. dxe4 {[%clk 0:02:16.9]} 9... Nf6 {[%clk 0:03:03.7]}
10. e5 {[%clk 0:02:13.5]} 10... Nd5 {[%clk 0:03:03.8]} 11. Nc3 {[%clk
0:02:06.9]} 11... c4 {[%clk 0:02:56.5]} 12. Ne4 {[%clk 0:02:05.4]} 12... h6
{[%clk 0:02:52.6]} 13. Qg3 {[%clk 0:02:04.3]} 13... Qb6 {[%clk 0:02:44.3]} 14.
c3 {[%clk 0:02:00.6]} 14... O-O-O {[%clk 0:02:35.2]} 15. a4 {[%clk 0:01:54.4]}
15... g5 {[%clk 0:02:32.1]} 16. axb5 {[%clk 0:01:46.6]} 16... gxf4 {[%clk
0:02:29.8]} 17. Bxf4 {[%clk 0:01:31]} 17... axb5 {[%clk 0:02:29.6]} 18. b3
{[%clk 0:01:24.8]} 18... cxb3 {[%clk 0:02:11.8]} 19. Rab1 {[%clk 0:01:17]} 19...
Be7 {[%clk 0:02:11.6]} 20. Bc1 {[%clk 0:01:04.5]} 20... Rhg8 {[%clk 0:02:00.6]}
21. Qh3 {[%clk 0:01:05]} 21... Rg7 {[%clk 0:01:46.8]} 22. Rxb3 {[%clk
0:01:04.6]} 22... b4 {[%clk 0:01:45.8]} 23. c4 {[%clk 0:00:55]} 23... Nc7 {[%clk
0:01:38.8]} 24. Nd6+ {[%clk 0:00:50.6]} 24... Bxd6 {[%clk 0:01:32.8]} 25. exd6
{[%clk 0:00:51.4]} 25... Rxd6 {[%clk 0:01:33.4]} 26. Be3 {[%clk 0:00:36.9]}
26... Qa5 {[%clk 0:01:17]} 27. c5 {[%clk 0:00:33.7]} 27... Rd8 {[%clk
0:01:13.3]} 28. Qxh6 {[%clk 0:00:30]} 28... Rdg8 {[%clk 0:01:12.2]} 29. Rg1
{[%clk 0:00:23.5]} 29... Nd5 {[%clk 0:01:09.4]} 30. Bd4 {[%clk 0:00:19.5]} 30...
Nxd4 {[%clk 0:01:04.9]} 31. Nxd4 {[%clk 0:00:20.2]} 31... Qxc5 {[%clk
0:00:48.8]} 32. Rc1 {[%clk 0:00:18.5]} 32... Nc3 {[%clk 0:00:50.1]} 33. Nf3
{[%clk 0:00:15.1]} 33... Rxg2 {[%clk 0:00:47.3]} 34. Rcxc3 {[%clk 0:00:12.6]}
34... Rg1# {[%clk 0:00:45.4]} 0-1

[Event "*** Titled Tuesday Blitz"]
[Site "Chess.com"]
[Date "2019.10.01"]
[Round "6"]
[White "Saloni1299"]
[Black "SCIM"]
[Result "0-1"]
[WhiteElo "2062"]
[BlackElo "2501"]
[TimeControl "180+2"]
[EndTime "14:24:57 PDT"]
[Termination "SCIM won by resignation"]

1. e4 {[%clk 0:03:01.9]} 1... c5 {[%clk 0:02:59.1]} 2. Nf3 {[%clk 0:03:03]} 2...
e6 {[%clk 0:02:59.1]} 3. d4 {[%clk 0:03:03.5]} 3... cxd4 {[%clk 0:03:00.3]} 4.
Nxd4 {[%clk 0:03:05]} 4... Nc6 {[%clk 0:03:02]} 5. Nc3 {[%clk 0:03:05.3]} 5...
Qc7 {[%clk 0:03:03.2]} 6. f4 {[%clk 0:03:01.5]} 6... a6 {[%clk 0:03:02.1]} 7.
Nxc6 {[%clk 0:03:01.5]} 7... bxc6 {[%clk 0:03:02.7]} 8. Bd3 {[%clk 0:03:00]}
8... d5 {[%clk 0:03:01.9]} 9. Qe2 {[%clk 0:02:59]} 9... Nf6 {[%clk 0:03:00.4]}
10. O-O {[%clk 0:02:59]} 10... Be7 {[%clk 0:02:56.2]} 11. Re1 {[%clk 0:02:55.5]}
11... O-O {[%clk 0:02:56.2]} 12. Kh1 {[%clk 0:02:42.5]} 12... Re8 {[%clk
0:02:49.6]} 13. b3 {[%clk 0:02:41.9]} 13... c5 {[%clk 0:02:43.9]} 14. e5 {[%clk
0:02:09.5]} 14... Nd7 {[%clk 0:02:41.5]} 15. f5 {[%clk 0:02:10.2]} 15... Bf8
{[%clk 0:02:29.1]} 16. fxe6 {[%clk 0:02:04.5]} 16... Rxe6 {[%clk 0:02:20.5]} 17.
Nxd5 {[%clk 0:02:03.4]} 17... Qxe5 {[%clk 0:02:12.6]} 18. Qxe5 {[%clk
0:01:52.8]} 18... Rxe5 {[%clk 0:02:13.4]} 19. Bf4 {[%clk 0:01:33.5]} 19... Rxd5
{[%clk 0:02:08]} 20. Be4 {[%clk 0:01:20]} 20... Nf6 {[%clk 0:02:07]} 21. Bxd5
{[%clk 0:01:08.2]} 21... Nxd5 {[%clk 0:02:08.9]} 22. Bg3 {[%clk 0:01:02.1]}
22... Be6 {[%clk 0:02:07.7]} 23. c4 {[%clk 0:01:02.3]} 23... Nb4 {[%clk
0:02:05.9]} 24. Rad1 {[%clk 0:01:00.2]} 24... Nxa2 {[%clk 0:02:01]} 25. Bd6
{[%clk 0:00:54.6]} 25... Nb4 {[%clk 0:01:56.1]} 26. Bxf8 {[%clk 0:00:54.3]}
26... Kxf8 {[%clk 0:01:56.3]} 27. Re5 {[%clk 0:00:51.6]} 27... Rc8 {[%clk
0:01:54.4]} 28. Rd6 {[%clk 0:00:51.4]} 28... Ke7 {[%clk 0:01:48.8]} 29. Rb6
{[%clk 0:00:52.2]} 29... Rc7 {[%clk 0:01:43.2]} 30. h3 {[%clk 0:00:47.6]} 30...
g6 {[%clk 0:01:39.7]} 31. Kh2 {[%clk 0:00:45.8]} 31... h5 {[%clk 0:01:40.1]} 32.
Kg3 {[%clk 0:00:40.9]} 32... Kf6 {[%clk 0:01:33.7]} 33. Re3 {[%clk 0:00:28.4]}
33... Rd7 {[%clk 0:01:32.4]} 34. Rb8 {[%clk 0:00:19.7]} 34... Nc6 {[%clk
0:01:28.6]} 35. Rb6 {[%clk 0:00:19.2]} 35... Nd4 {[%clk 0:01:30.1]} 36. Kh2
{[%clk 0:00:16.8]} 36... a5 {[%clk 0:01:29.2]} 37. Ra6 {[%clk 0:00:16.3]} 37...
Rb7 {[%clk 0:01:26.9]} 38. Rxa5 {[%clk 0:00:16.9]} 38... Rxb3 {[%clk 0:01:22.1]}
39. Rc3 {[%clk 0:00:07.4]} 39... Rxc3 {[%clk 0:01:22.1]} 40. Rxc5 {[%clk
0:00:08.7]} 40... Rxc4 {[%clk 0:01:20.4]} 0-1